bitfinex/quotes_ETHUSD_20251217
["timestamp","ask_amount","ask_price","bid_price","bid_amount"]
[1766014313241,0.001,2830.9,2830.5,0.4542]
[1766014313440,0.001,2830.9,2830.5,2.7068]
[1766014314335,0.001,2830.9,2830.6,2.7068]
[1766014314541,0.001,2830.9,2830.3,2.7088]
[1766014314843,0.001,2830.9,2830.3,0.002]
[1766014315645,6.14406778,2830.9,2830.3,0.002]
[1766014315843,0.61450678,2830.8,2830.3,0.002]
[1766014319152,0.61450678,2830.8,2829.9,0.002]
[1766014319336,0.61450678,2830.8,2829.9,2.7088]
[1766014319538,0.61450678,2830.8,2829.9,2.2546]
[1766014319758,0.61450678,2830.8,2830.0,2.7068]
[1766014320253,0.61450678,2830.8,2830.0,2.2526]
[1766014320455,7.20653181,2830.9,2830.2,2.7068]
[1766014321030,10.73897888,2830.9,2830.0,2.7068]
[1766014321456,6.14306778,2830.3,2829.8,0.002]
[1766014321629,6.14306778,2830.3,2829.3,2.7068]
[1766014321830,6.14306778,2830.0,2829.2,0.002]
[1766014322057,0.61430678,2829.9,2829.2,0.002]
[1766014324045,0.61430678,2829.9,2829.2,2.7088]
[1766014326139,6.14306778,2829.7,2829.2,0.002]
[1766014326579,6.28478134,2829.7,2829.1,0.002]
[1766014326779,0.62847813,2829.6,2829.1,0.002]
[1766014327571,0.62847813,2829.6,2829.1,2.7088]
[1766014328239,6.14306778,2829.8,2829.1,2.7088]
[1766014328638,6.14306778,2829.2,2827.9,0.002]
[1766014328841,6.14306778,2828.5,2827.9,0.002]
[1766014329037,0.46438023,2828.7,2827.9,2.2546]
[1766014329268,1.12512503,2828.7,2828.0,2.7068]
[1766014329639,1.06324349,2828.6,2828.0,2.7068]
[1766014330268,0.46438023,2829.1,2828.4,1.9718]
[1766014330550,6.14306778,2828.6,2828.0,1.9718]
[1766014330746,0.72062359,2828.5,2827.9,0.002]
[1766014331154,0.72062359,2828.5,2827.9,2.4913]
[1766014331357,0.72062359,2828.5,2827.9,2.0416]
[1766014331656,0.72062359,2828.5,2828.0,2.4893]
[1766014332490,0.68636914,2828.4,2827.6,0.002]
[1766014332678,6.14306778,2827.8,2826.3,6.14306778]
[1766014332982,6.14306778,2827.8,2826.6,0.14180349]
[1766014333186,0.46438023,2827.8,2826.6,0.14180349]
[1766014333383,0.46438023,2827.8,2826.5,0.405504]
[1766014333585,0.46438023,2827.8,2826.4,0.46438023]
[1766014333586,1.23147765,2827.8,2826.4,0.46438023]
[1766014333760,6.14306778,2827.6,2826.1,6.70306778]
[1766014333959,6.14306778,2827.6,2826.2,0.405504]
[1766014334159,6.14306778,2827.6,2826.2,0.46438023]
[1766014334685,6.14306778,2827.5,2826.9,2.4893]
[1766014335684,6.14306778,2827.2,2826.7,0.002]
[1766014335886,6.14306778,2826.9,2825.7,2.0396]
[1766014336086,6.14306778,2826.9,2826.2,0.4497]
[1766014336380,6.14306778,2826.9,2826.5,2.0396]
[1766014336569,6.14306778,2826.9,2826.5,2.4893]
[1766014339689,3.53701414,2827.3,2826.5,2.0396]
[1766014339690,0.46438023,2827.3,2826.5,2.0396]
[1766014339866,1.52820813,2827.7,2826.9,2.4893]
[1766014339867,0.46438023,2827.6,2826.9,2.4893]
[1766014340072,0.46438023,2827.6,2827.0,2.4893]
[1766014341474,4.00103123,2827.6,2827.0,2.4893]
[1766014342689,7.53768223,2827.6,2826.7,2.4893]
[1766014342886,5.44716253,2827.6,2826.7,2.0396]
[1766014343093,5.44716253,2827.6,2826.8,2.4893]
[1766014343269,5.44716253,2827.6,2826.9,2.4893]
[1766014343975,5.44716253,2827.6,2826.5,0.20596]
[1766014343976,1.27037165,2827.8,2827.1,0.4497]
[1766014344182,0.46438023,2827.7,2827.1,2.4893]
[1766014344970,0.80599142,2827.8,2827.1,2.4893]
[1766014345169,0.46438023,2827.7,2827.1,2.4893]
[1766014346368,0.46438023,2827.6,2827.1,2.4893]
[1766014346781,0.46438023,2827.7,2827.1,2.4893]
[1766014347301,0.50327423,2827.8,2827.1,2.4893]
[1766014347780,4.03962479,2827.8,2827.1,2.4893]
[1766014348700,4.03962479,2827.8,2826.6,2.0396]
[1766014348999,4.03962479,2827.8,2826.9,2.4893]
[1766014349203,4.03962479,2827.8,2827.0,2.4893]
[1766014349390,4.00073079,2827.8,2827.1,2.4893]
[1766014350506,0.46438023,2827.8,2827.1,2.4893]
[1766014352589,4.0007889,2827.8,2827.1,2.4893]
[1766014352892,4.75838238,2827.8,2827.1,2.4893]
[1766014356597,0.75759348,2827.8,2827.1,2.4893]
[1766014356773,0.46438023,2827.7,2827.1,2.4893]
[1766014358719,0.75859348,2827.8,2827.1,2.0396]
[1766014358885,0.75859348,2827.8,2827.3,0.4497]
[1766014359088,0.46438023,2827.7,2827.0,0.002]
[1766014359289,0.46438023,2827.7,2827.1,2.4893]
[1766014360691,6.15653339,2828.1,2827.1,2.4893]
[1766014360692,0.50327423,2828.2,2827.6,2.0396]
[1766014360897,4.03914634,2828.2,2827.8,2.4296]
[1766014361106,3.53500743,2828.9,2828.1,0.4636]
[1766014361282,0.001,2829.0,2828.5,2.4296]
[1766014361483,0.3574626,2828.9,2828.4,2.4296]
[1766014361688,0.82184283,2828.9,2828.4,2.4296]
[1766014361892,0.82184283,2828.9,2828.5,0.4636]
[1766014362101,0.3574626,2828.9,2828.3,2.4296]
[1766014362684,0.46438023,2828.7,2828.3,2.4296]
[1766014363312,0.46438023,2828.7,2828.3,0.4636]
[1766014363512,0.46438023,2828.7,2827.8,0.4636]
[1766014363513,1.83980082,2828.7,2827.8,0.4636]
[1766014363691,0.9000713,2828.7,2827.9,0.56]
[1766014363892,0.9000713,2828.7,2828.1,1.966]
[1766014364101,0.9000713,2828.7,2828.3,1.966]
[1766014364307,0.9000713,2828.7,2828.3,2.4296]
[1766014364582,0.9000713,2828.7,2828.1,2.4296]
[1766014365782,4.43527571,2828.7,2828.0,0.56]
[1766014365985,4.43527571,2828.7,2827.8,1.966]
[1766014366185,4.43527571,2828.7,2827.9,2.9896]
[1766014366406,4.43527571,2828.7,2828.0,2.4296]
[1766014366712,0.001,2829.0,2828.1,0.4636]
[1766014366909,0.001,2829.0,2827.9,0.56]
[1766014366910,0.001,2829.0,2828.6,1.966]
[1766014367120,0.001,2829.0,2828.8,2.4296]
[1766014367311,0.001,2829.6,2828.9,2.4296]
[1766014367497,3.53509898,2829.6,2828.9,2.4296]
[1766014367812,0.82177953,2829.5,2828.9,2.4296]
[1766014368004,0.3573993,2829.5,2828.9,2.4296]
[1766014368207,3.8916044,2829.5,2828.9,2.4296]
[1766014368406,3.8916044,2829.5,2829.0,0.56]
[1766014368609,0.46438023,2829.4,2829.0,0.56]
[1766014368785,1.2534858,2829.4,2829.0,0.56]
[1766014370520,4.78784914,2829.4,2828.0,0.405504]
[1766014370698,8.79568739,2829.4,2828.3,2.4296]
[1766014370904,6.15505534,2829.2,2828.4,0.56]
[1766014371109,7.69675507,2829.2,2828.4,0.56]
[1766014371431,1.54169973,2829.2,2828.4,0.56]
[1766014371591,1.54169973,2829.2,2828.3,2.4296]
[1766014371592,2.48142925,2829.2,2828.3,2.4296]
[1766014371793,2.48142925,2829.2,2828.3,2.9896]
[1766014371794,2.01517464,2829.2,2828.3,2.9896]
[1766014372022,0.20151746,2829.1,2828.3,2.9896]
[1766014372228,0.47347491,2829.2,2828.3,2.9896]
[1766014373531,4.00915308,2829.2,2828.3,2.9896]
[1766014375011,7.54383125,2829.2,2828.3,2.9896]
[1766014375329,7.54383125,2829.2,2828.1,2.4296]
[1766014375330,0.46438023,2829.1,2828.1,2.4296]
[1766014375487,0.46438023,2829.1,2828.1,2.9896]
[1766014375692,4.3356391,2829.0,2828.1,2.9896]
[1766014376527,0.46438023,2828.9,2827.2,1.966]
[1766014376692,0.405504,2828.8,2827.7,0.4636]
[1766014377026,0.18096138,2828.7,2827.8,0.56]
[1766014377597,3.71622943,2828.7,2827.8,2.9896]
[1766014378322,0.46438023,2828.6,2827.1,0.71351023]
[1766014378500,0.93063484,2828.6,2827.5,0.4636]
[1766014378710,0.47347491,2828.5,2827.6,0.56]
[1766014380220,4.00902738,2828.5,2827.6,2.9896]
[1766014380427,0.84749962,2828.4,2827.7,2.4296]
[1766014380794,3.53555247,2828.5,2827.7,2.4296]
[1766014380994,3.53555247,2828.5,2827.7,2.9896]
[1766014381925,3.99975248,2828.6,2827.7,0.56]
[1766014382123,3.99975248,2828.6,2827.9,2.4296]
[1766014382605,7.53512473,2828.6,2827.9,2.4296]
[1766014382906,0.77160861,2828.5,2827.7,2.9896]
[1766014384531,0.77160861,2828.5,2827.9,0.4636]
[1766014384833,0.77160861,2828.5,2828.1,2.4296]
[1766014385031,0.77160861,2828.5,2828.2,2.4296]
[1766014385199,0.77160861,2828.5,2827.8,1.966]
[1766014385399,0.77160861,2828.5,2827.9,2.4296]
[1766014385813,1.23598884,2828.5,2827.9,2.4296]
[1766014387304,0.47713153,2828.4,2827.9,2.4296]
[1766014387635,0.18096138,2828.7,2828.0,1.966]
[1766014387841,3.53502458,2828.9,2828.2,2.4296]
[1766014394059,0.001,2829.2,2828.2,2.4296]
[1766014394242,0.46538023,2829.2,2828.4,0.4535]
[1766014394418,0.66545063,2829.1,2828.5,3.0161]
[1766014394927,1.12983086,2829.1,2828.5,3.0161]
[1766014395448,1.12983086,2829.1,2828.7,2.4561]
[1766014396630,4.20014694,2829.1,2828.5,0.56]
[1766014396830,0.46438023,2829.0,2828.6,2.4561]
[1766014397142,0.66545063,2829.1,2828.6,2.4561]
[1766014397345,1.12983086,2829.1,2828.6,2.4561]
[1766014398050,1.13083086,2829.1,2828.6,2.4561]
[1766014398440,0.46438023,2829.0,2828.6,2.4561]
[1766014398938,0.66645063,2829.1,2828.6,2.4561]
[1766014399254,4.20115953,2829.1,2828.6,2.4561]
[1766014399452,0.001,2829.1,2828.7,0.4535]
[1766014399660,0.001,2829.1,2828.7,2.4561]
[1766014402563,0.001,2829.1,2828.5,3.0161]
[1766014403261,0.46438023,2829.0,2828.6,2.4561]
[1766014405556,5.01417544,2829.0,2827.9,0.002]
[1766014405758,6.14870443,2828.8,2828.0,3.0151]
[1766014406645,6.14870443,2828.8,2828.1,2.0026]
[1766014406847,6.14870443,2828.8,2828.2,2.4561]
[1766014407555,6.14870443,2828.8,2828.2,3.0151]
[1766014410678,6.14870443,2828.8,2828.3,2.4561]
[1766014410842,6.14870443,2828.8,2828.4,2.4561]
[1766014411677,1.47935131,2829.0,2828.3,2.4561]
[1766014412243,1.11638074,2828.9,2828.3,2.4561]
[1766014412944,4.0079699,2829.3,2828.2,0.559]
[1766014412945,0.001,2829.6,2829.2,2.4561]
[1766014413248,0.001,2829.6,2829.3,0.559]
[1766014413450,0.001,2829.6,2829.3,3.0151]
[1766014413841,0.001,2829.6,2829.4,2.4561]
[1766014414050,0.001,2829.1,2828.9,0.4535]
[1766014414365,0.001,2829.1,2829.0,2.4561]
[1766014414565,0.001,2829.1,2829.0,0.56]
[1766014415147,0.001,2829.1,2828.8,2.4561]
[1766014415353,0.001,2829.1,2828.9,3.26171]
[1766014416050,0.001,2829.1,2828.9,0.80561]
[1766014416372,0.001,2829.1,2829.0,2.4561]
[1766014416572,6.14970443,2829.6,2829.0,2.4561]
[1766014416751,6.14970443,2829.6,2828.3,0.46438023]
[1766014417081,6.14970443,2829.6,2828.8,2.4561]
[1766014417275,6.14970443,2829.6,2828.9,0.56]
[1766014417462,6.14970443,2829.6,2829.0,0.56]
[1766014418076,0.46438023,2829.5,2829.0,0.56]
[1766014419280,0.46438023,2829.5,2828.8,2.4561]
[1766014419482,0.46438023,2829.5,2829.1,0.56]
[1766014420865,0.46438023,2829.5,2828.8,0.56]
[1766014421247,6.14870443,2829.3,2828.6,0.002]
[1766014421781,0.46438023,2829.5,2828.6,0.002]
[1766014422077,1.01482073,2829.4,2828.6,0.002]
[1766014422281,6.14870443,2828.7,2828.1,0.002]
[1766014423356,0.46438023,2828.8,2828.1,0.002]
[1766014423567,0.46438023,2828.8,2827.9,0.002]
[1766014423782,1.21780605,2828.8,2827.9,0.002]
[1766014424256,1.21780605,2828.8,2827.9,2.4297]
[1766014424463,1.21780605,2828.8,2827.9,0.002]
[1766014426164,0.75342582,2828.8,2827.9,0.002]
[1766014426364,0.46438023,2829.2,2828.4,1.9684]
[1766014426569,0.46438023,2829.3,2828.5,2.4277]
[1766014428072,0.46438023,2829.3,2828.2,1.9684]
[1766014428260,0.46438023,2829.1,2828.0,2.4277]
[1766014428454,0.75335164,2829.0,2828.0,2.67067]
[1766014428656,0.75335164,2829.0,2828.0,0.24297]
[1766014429473,0.75335164,2829.0,2827.9,2.9897]
[1766014429661,0.75335164,2829.0,2828.0,2.4277]
[1766014430062,0.75335164,2829.0,2828.1,0.4593]
[1766014430793,0.75335164,2829.0,2828.1,2.4277]
[1766014431088,4.28818739,2829.0,2828.1,2.4277]
[1766014431387,0.89319897,2828.9,2827.9,2.9897]
[1766014431598,0.89319897,2828.9,2828.0,2.4277]
[1766014431893,0.89319897,2828.9,2827.9,0.562]
[1766014432481,0.89319897,2828.9,2827.9,0.002]
[1766014433266,0.42881874,2828.9,2827.9,0.002]
[1766014433584,0.46438023,2829.2,2828.4,1.9684]
[1766014433789,0.46438023,2829.2,2828.5,2.4277]
[1766014435797,3.99898331,2829.2,2828.5,2.4277]
[1766014435999,3.99898331,2829.2,2828.3,2.4277]
[1766014436205,0.75335113,2829.1,2828.3,2.4277]
[1766014437904,0.75335113,2829.1,2828.4,2.4277]
[1766014438506,1.21773136,2829.1,2828.4,2.4277]
[1766014440006,0.75335113,2829.1,2828.5,0.4593]
[1766014440309,1.21773136,2829.1,2828.5,2.4277]
[1766014440696,0.75335113,2829.1,2828.5,2.4277]
[1766014441100,0.001,2829.2,2828.5,2.4277]
[1766014441507,0.001,2829.2,2828.6,0.4593]
[1766014441804,0.001,2829.2,2828.2,0.56]
[1766014441805,0.001,2829.2,2828.7,0.4593]
[1766014442001,0.001,2829.2,2828.8,2.4277]
[1766014442204,0.001,2829.2,2828.2,0.56]
[1766014442397,0.001,2829.2,2828.5,1.9684]
[1766014442603,0.001,2829.2,2828.6,0.19684]
[1766014442800,0.001,2829.2,2828.5,2.4277]
[1766014443001,3.53419332,2829.5,2828.6,0.03535317]
[1766014443202,3.53419332,2829.5,2828.5,0.56]
[1766014443382,3.99951184,2829.6,2828.5,2.9877]
[1766014444082,0.405504,2829.5,2828.2,1.9684]
[1766014444287,0.79391474,2829.4,2828.2,2.9877]
[1766014444482,0.79391474,2829.4,2828.4,0.4593]
[1766014444714,0.79391474,2829.4,2828.5,0.4593]
[1766014444907,0.79391474,2829.4,2828.5,2.4277]
[1766014445419,0.46438023,2829.1,2828.3,2.4277]
[1766014445715,0.46438023,2829.1,2828.3,2.72647]
[1766014446085,0.46438023,2829.1,2828.3,0.29877]
[1766014446286,0.46438023,2829.1,2828.4,0.4593]
[1766014447432,0.46438023,2829.1,2828.4,2.4277]
[1766014447634,1.25829497,2829.4,2828.4,2.4277]
[1766014447784,1.25829497,2829.4,2828.5,2.4277]
[1766014447989,7.40796964,2829.4,2828.5,2.4277]
[1766014448290,1.09422334,2829.3,2828.5,2.4277]
[1766014450017,1.09422334,2829.3,2828.5,1.9684]
[1766014450324,1.09422334,2829.3,2828.6,2.5865]
[1766014451129,0.001,2829.6,2828.8,1.9834]
[1766014451294,0.46438023,2829.5,2828.9,2.4515]
[1766014451492,6.15067467,2829.6,2828.9,2.4515]
[1766014451716,0.46438023,2829.5,2828.6,0.56]
[1766014451922,0.46438023,2829.5,2828.7,2.4515]
[1766014452123,0.46438023,2829.5,2828.7,2.75265]
[1766014452622,6.14967467,2829.5,2828.7,2.75265]
[1766014453794,0.001,2829.3,2828.7,2.75265]
[1766014454922,0.001,2829.3,2828.8,2.4515]
[1766014455619,0.001,2829.3,2828.8,1.9834]
[1766014455827,0.001,2829.3,2828.6,0.56]
[1766014455828,0.001,2829.3,2829.0,2.4515]
[1766014456897,0.001,2829.3,2828.9,2.679955]
[1766014459330,0.001,2829.3,2829.0,2.4515]
[1766014459625,0.001,2829.3,2829.1,0.4681]
[1766014459823,0.001,2829.3,2829.0,1.9834]
[1766014460025,0.001,2829.6,2829.2,0.4681]
[1766014460236,0.001,2829.6,2829.5,2.4515]
[1766014460534,0.001,2829.9,2829.5,2.4515]
[1766014460703,0.001,2829.9,2829.7,0.4681]
[1766014460906,0.001,2829.9,2829.7,2.4515]
[1766014462016,0.001,2830.3,2829.7,2.22855]
[1766014462261,0.001,2830.3,2830.1,2.4515]
[1766014462925,0.001,2830.3,2829.8,2.4515]
[1766014463100,0.001,2830.3,2829.7,0.80515]
[1766014463500,0.001,2830.3,2829.7,3.25665]
[1766014463701,0.001,2830.3,2829.8,2.777165]
[1766014464128,0.001,2830.3,2829.8,0.325665]
[1766014464336,0.001,2830.3,2829.4,1.0281]
[1766014464833,0.001,2830.3,2828.8,0.46438023]
[1766014464834,6.14379368,2830.2,2829.2,0.56]
[1766014465037,0.46438023,2830.1,2829.1,0.4681]
[1766014466042,0.46438023,2830.1,2829.1,2.4515]
[1766014466249,0.39976994,2830.0,2829.1,2.4515]
[1766014469940,0.39976994,2830.0,2829.2,2.4515]
[1766014470141,0.39976994,2830.0,2829.2,1.9834]
[1766014470321,0.46438023,2830.2,2829.3,2.4515]
[1766014470521,3.53332958,2830.2,2829.3,2.4515]
[1766014470740,0.46438023,2830.1,2829.1,2.4515]
[1766014471838,0.46438023,2830.0,2829.1,2.4515]
[1766014472248,3.99776494,2830.2,2829.2,0.4681]
[1766014472451,0.44042689,2830.1,2829.2,2.4515]
[1766014474148,0.46438023,2830.0,2829.0,0.002]
[1766014474450,0.46438023,2830.0,2829.0,2.4535]
[1766014477856,0.46438023,2830.0,2829.1,0.002]
[1766014478021,0.44382995,2829.9,2829.1,0.002]
[1766014479053,0.44382995,2829.9,2829.0,0.002]
[1766014479258,0.44382995,2829.9,2829.0,1.9854]
[1766014479556,0.90821018,2829.9,2829.0,2.4535]
[1766014480144,0.44382995,2829.9,2829.1,2.4515]
[1766014480345,0.90821018,2829.9,2829.1,2.4515]
[1766014480556,3.93901883,2830.1,2829.1,2.4515]
[1766014480948,0.405504,2829.9,2829.0,0.002]
[1766014481329,0.405504,2829.9,2829.0,2.4713]
[1766014482055,0.405504,2829.9,2829.0,1.9985]
[1766014482225,0.405504,2830.1,2829.3,1.9965]
[1766014482430,0.44421588,2830.0,2829.4,0.4728]
[1766014482736,0.44421588,2830.0,2829.3,1.9965]
[1766014483057,0.44421588,2830.0,2829.1,2.4693]
[1766014484169,0.90859611,2830.0,2829.1,2.4693]
[1766014485162,3.97782328,2830.0,2829.1,2.4693]
[1766014485459,0.90271296,2829.9,2829.1,2.4693]
[1766014486065,0.43833273,2829.9,2829.1,2.4693]
[1766014487559,6.1466238,2829.6,2828.6,0.4728]
[1766014487735,6.1466238,2829.6,2828.4,0.002]
[1766014487736,6.1466238,2829.6,2828.7,0.4728]
[1766014488053,0.61466238,2829.5,2828.7,2.4693]
[1766014488239,0.61466238,2829.5,2828.9,2.4693]
[1766014488439,0.86988423,2829.8,2828.9,2.4693]
[1766014488965,0.46438023,2829.8,2828.9,1.9965]
[1766014489132,0.46438023,2829.8,2829.2,2.4693]
[1766014489845,0.46438023,2829.8,2829.0,0.4728]
[1766014490158,0.46438023,2829.8,2829.0,2.4693]
[1766014490358,0.91200387,2829.8,2829.0,2.4693]
[1766014493466,0.44762364,2829.8,2829.4,1.9965]
[1766014493666,0.43833273,2829.9,2829.4,1.9965]
[1766014494165,0.001,2830.0,2829.4,2.4693]
[1766014495179,0.001,2830.0,2829.6,2.4693]
[1766014495358,0.001,2830.0,2829.8,2.4693]
[1766014495557,0.001,2830.0,2829.9,2.4693]
[1766014495872,0.001,2830.3,2830.0,1.9965]
[1766014496033,0.001,2830.3,2830.1,2.4693]
[1766014497339,0.001,2830.3,2829.7,1.9965]
[1766014497538,0.001,2830.3,2830.0,2.4693]
[1766014498350,0.001,2830.3,2830.0,1.9965]
[1766014498567,0.001,2830.3,2829.8,0.25565]
[1766014498568,0.001,2830.3,2830.1,2.4693]
[1766014498774,0.001,2830.4,2830.2,0.4728]
[1766014498955,0.001,2830.5,2830.4,2.4693]
[1766014499352,0.001,2830.8,2830.4,2.4693]
[1766014499668,0.001,2830.8,2830.7,2.4693]
[1766014499877,0.001,2831.0,2830.8,2.4693]
[1766014500050,0.001,2831.0,2830.9,2.4693]
[1766014500378,0.001,2831.2,2831.0,1.9965]
[1766014500678,0.001,2831.4,2831.1,0.4728]
[1766014500881,0.001,2831.4,2831.1,2.4693]
[1766014501053,0.001,2831.4,2830.4,0.80693]
[1766014501255,0.001,2831.4,2830.7,1.9965]
[1766014501482,0.001,2831.4,2830.9,2.4693]
[1766014503044,0.001,2831.0,2830.9,2.4693]
[1766014503247,0.001,2831.0,2830.9,2.71623]
[1766014504349,0.001,2831.6,2831.2,0.4728]
[1766014504691,0.001,2831.6,2831.4,2.4693]
[1766014507080,0.001,2831.6,2831.0,0.4728]
[1766014507252,0.001,2831.6,2831.3,1.9965]
[1766014507575,0.001,2831.6,2831.2,2.4693]
[1766014510880,0.001,2831.6,2830.7,2.0481]
[1766014511180,0.001,2831.6,2830.9,0.559]
[1766014511362,0.001,2831.6,2830.8,2.5318]
[1766014512588,0.001,2831.6,2830.8,2.84088]
[1766014512885,0.001,2831.6,2830.9,2.5318]
[1766014513081,0.001,2831.6,2831.0,0.4837]
[1766014513280,0.001,2831.6,2831.4,2.5318]
[1766014513976,0.001,2831.6,2831.0,0.559]
[1766014514182,0.001,2831.6,2831.3,2.5318]
[1766014514384,0.001,2831.6,2830.9,0.559]
[1766014514555,0.001,2831.6,2830.9,3.35151]
[1766014514755,0.001,2831.6,2831.0,2.5318]
[1766014514957,0.001,2831.6,2831.2,2.0481]
[1766014515166,0.001,2831.6,2831.2,2.5318]
[1766014515372,0.001,2831.6,2831.0,2.5318]
[1766014515659,0.001,2831.6,2831.0,2.0481]
[1766014515987,0.001,2831.6,2831.3,2.5318]
[1766014516489,0.001,2831.6,2831.0,0.286781]
[1766014516787,0.001,2831.6,2830.9,3.0908]
[1766014516987,0.001,2831.6,2831.0,0.002]
[1766014519593,0.86988423,2831.5,2830.0,0.4837]
[1766014519777,3.53182171,2831.4,2830.3,0.4837]
[1766014519969,3.53182171,2831.4,2830.4,2.5318]
[1766014520479,4.40164312,2831.5,2830.5,2.5318]
[1766014520680,4.40164312,2831.5,2830.5,2.0481]
[1766014520886,1.05481458,2831.4,2830.6,2.5318]
[1766014521594,1.05481458,2831.4,2830.7,0.4837]
[1766014521805,0.86988423,2831.5,2830.7,2.0481]
[1766014522097,0.001,2831.6,2831.0,2.5318]
[1766014522474,0.46538023,2831.6,2831.0,2.5318]
[1766014523900,0.46538023,2831.6,2831.0,2.5338]
[1766014524105,0.44023428,2831.5,2831.1,0.4837]
[1766014524281,0.001,2831.6,2831.1,2.5318]
[1766014525704,0.46538023,2831.6,2831.1,2.5318]
[1766014529008,0.001,2831.6,2831.1,2.5318]
[1766014529389,0.001,2831.6,2831.2,0.4837]
[1766014529590,0.001,2831.6,2831.2,2.5318]
[1766014530608,0.001,2831.6,2831.3,0.4837]
[1766014531112,0.001,2831.6,2831.3,2.0481]
[1766014531414,0.001,2831.6,2831.5,2.5318]
[1766014533004,0.001,2831.6,2831.1,2.0481]
[1766014533211,0.001,2831.6,2831.4,0.4837]
[1766014533804,0.001,2831.6,2831.4,2.5318]
[1766014534287,0.001,2831.6,2831.5,0.4837]
[1766014534482,0.001,2831.6,2831.5,2.5318]
[1766014535319,0.001,2831.9,2831.5,2.0481]
[1766014535522,0.001,2831.9,2831.0,6.1399749]
[1766014535523,0.001,2831.9,2831.6,2.5318]
[1766014536389,0.001,2831.9,2831.5,0.4837]
[1766014536589,0.001,2831.9,2831.7,2.5318]
[1766014537782,0.001,2831.9,2831.8,0.4837]
[1766014538017,0.001,2831.9,2831.5,0.4837]
[1766014538406,0.001,2831.9,2831.4,2.5318]
[1766014538807,0.001,2831.9,2831.4,2.0481]
[1766014539021,0.001,2831.9,2831.5,2.0481]
[1766014539200,0.001,2831.9,2831.6,2.5318]
[1766014540817,0.001,2831.9,2831.7,0.4837]
[1766014541120,0.001,2831.9,2831.7,2.451]
[1766014542721,0.039894,2833.3,2832.0,1.9673]
[1766014543017,0.039894,2833.3,2831.0,0.002]
[1766014543018,3.52990597,2833.0,2832.2,2.449]
[1766014543214,0.46438023,2832.9,2832.2,2.449]
[1766014543606,3.93659756,2832.8,2831.7,0.559]
[1766014543789,0.46438023,2832.5,2831.6,0.559]
[1766014543995,0.405504,2832.4,2831.6,0.559]
[1766014544212,0.001,2831.9,2831.6,3.008]
[1766014544408,0.001,2831.9,2831.7,0.301]
[1766014544608,0.001,2831.9,2831.6,2.449]
[1766014545491,0.001,2831.9,2831.7,2.449]
[1766014545823,0.001,2831.9,2831.8,2.449]
[1766014546422,0.405504,2832.5,2831.8,2.449]
[1766014546620,0.88606902,2832.5,2831.8,2.449]
[1766014546809,0.46438023,2832.6,2831.9,1.9673]
[1766014547015,3.53112645,2832.8,2832.0,2.449]
[1766014547211,7.93028595,2832.7,2831.6,2.449]
[1766014547520,4.40008509,2832.7,2831.7,2.449]
[1766014548913,4.40008509,2832.7,2831.8,2.449]
[1766014549108,0.405504,2832.5,2831.8,2.449]
[1766014553226,0.86988423,2832.5,2831.8,1.9673]
[1766014553403,0.86988423,2832.5,2831.9,2.449]
[1766014554334,0.86988423,2832.5,2831.9,1.9673]
[1766014554532,0.86988423,2832.5,2832.1,1.9673]
[1766014554732,1.38931997,2832.5,2832.2,2.449]
[1766014555106,0.92493974,2832.5,2832.2,2.449]
[1766014555429,1.38931997,2832.5,2832.2,2.449]
[1766014555944,1.38931997,2832.5,2831.7,1.9673]
[1766014556229,0.46438023,2832.6,2832.2,2.449]
[1766014557135,0.46438023,2832.6,2831.7,2.449]
[1766014557431,0.46438023,2832.6,2831.8,2.449]
[1766014557432,3.99473144,2832.6,2831.8,2.449]
[1766014558541,3.99473144,2832.6,2831.9,0.4817]
[1766014558713,3.53124653,2832.7,2831.9,0.4817]
[1766014559046,0.46438023,2832.6,2831.9,0.4817]
[1766014559546,0.46438023,2832.6,2831.9,2.449]
[1766014559741,0.46438023,2832.6,2831.8,0.002]
[1766014559928,0.46438023,2832.6,2831.8,2.451]
[1766014560134,0.46538023,2832.6,2831.8,2.451]
[1766014560334,0.46538023,2832.6,2831.9,2.75]
[1766014560709,0.001,2832.6,2832.1,0.4817]
[1766014560908,0.001,2832.6,2832.2,2.449]
[1766014561127,0.001,2832.6,2832.3,2.449]
[1766014561352,0.001,2832.6,2831.8,2.451]
[1766014561527,0.001,2832.6,2831.8,0.8061]
[1766014562035,0.001,2832.6,2831.8,3.2551]
[1766014563347,0.001,2832.6,2831.8,2.6961]
[1766014563541,0.001,2832.6,2831.9,1.9673]
[1766014563916,0.001,2832.6,2832.2,2.449]
[1766014564113,0.001,2832.6,2832.4,2.449]
[1766014564315,0.001,2832.7,2832.5,2.449]
[1766014564534,0.001,2832.7,2832.6,2.449]
[1766014564730,0.001,2832.8,2832.7,0.4817]
[1766014564942,0.001,2832.8,2832.7,2.449]
[1766014565530,0.001,2832.8,2832.3,2.449]
[1766014565725,0.001,2832.8,2832.3,0.32529]
[1766014566347,0.001,2832.8,2832.0,0.559]
[1766014567024,0.001,2832.8,2832.0,2.449]
[1766014567850,0.001,2832.8,2832.0,1.9673]
[1766014568158,0.001,2832.8,2832.1,0.4817]
[1766014568826,0.001,2832.8,2832.1,2.449]
[1766014569028,0.001,2832.8,2832.1,2.7498]
[1766014570962,0.001,2832.8,2832.1,0.3008]
[1766014571172,0.001,2832.8,2831.8,0.002]
[1766014571173,6.13587283,2832.8,2831.8,0.002]
[1766014572059,6.13587283,2832.8,2831.8,2.536]
[1766014573236,0.406504,2832.8,2832.1,0.4568]